[Event "Titled Tuesday Blitz August 15 Early 2023"]
[White "Tikhonov, Viacheslav"]
[Black "Vaishali, Rameshbabu"]
[WhiteFideId "44196407"]
[BlackFideId "5091756"]
[WhiteElo "2516"]
[BlackElo "2650"]
[Result "0-1"]
[Round "8"]
[TimeControl "180+1"]
[Date "2023.08.15"]
[WhiteClock "0:00:08"]
[BlackClock "0:00:02"]
[Board "66"]

1. d4 {[%clk 0:03:00]}  Nf6 {[%clk 0:02:59]} 2. c4 {[%clk 0:03:01]}  g6 {[%clk 0:02:59]} 3. Nc3 {[%clk 0:03:00]}  d5 {[%clk 0:03:00]} 4. cxd5 {[%clk 0:02:55]}  Nxd5 {[%clk 0:03:00]} 5. e4 {[%clk 0:02:56]}  Nxc3 {[%clk 0:03:00]} 6. bxc3 {[%clk 0:02:57]}  Bg7 {[%clk 0:03:01]} 7. Nf3 {[%clk 0:02:58]}  c5 {[%clk 0:03:01]} 8. Bb5+ {[%clk 0:02:58]}  Nc6 {[%clk 0:03:00]} 9. O-O {[%clk 0:02:58]}  O-O {[%clk 0:02:59]} 10. Bxc6 {[%clk 0:02:59]}  bxc6 {[%clk 0:03:00]} 11. Qc2 {[%clk 0:02:59]}  Qa5 {[%clk 0:02:57]} 12. a4 {[%clk 0:02:58]}  cxd4 {[%clk 0:02:27]} 13. cxd4 {[%clk 0:02:57]}  Bg4 {[%clk 0:02:27]} 14. Ne5 {[%clk 0:02:51]}  Bxe5 {[%clk 0:02:23]} 15. dxe5 {[%clk 0:02:52]}  Qxe5 {[%clk 0:01:37]} 16. Bb2 {[%clk 0:02:50]}  Qa5 {[%clk 0:01:33]} 17. Ba3 {[%clk 0:02:39]}  Rfe8 {[%clk 0:01:23]} 18. Bc5 {[%clk 0:02:39]}  Rad8 {[%clk 0:01:16]} 19. f3 {[%clk 0:02:29]}  Rd2 {[%clk 0:00:57]} 20. Qc1 {[%clk 0:02:16]}  Be6 {[%clk 0:00:53]} 21. Rb1 {[%clk 0:02:02]}  Ra2 {[%clk 0:00:37]} 22. Rb7 {[%clk 0:01:56]}  Qxa4 {[%clk 0:00:33]} 23. Rxe7 {[%clk 0:01:44]}  Rxe7 {[%clk 0:00:29]} 24. Bxe7 {[%clk 0:01:45]}  Rc2 {[%clk 0:00:23]} 25. Qh6 {[%clk 0:01:42]}  Qd4+ {[%clk 0:00:19]} 26. Kh1 {[%clk 0:01:42]}  Qg7 {[%clk 0:00:15]} 27. Qf4 {[%clk 0:01:42]}  h6 {[%clk 0:00:11]} 28. Bf6 {[%clk 0:01:39]}  Qf8 {[%clk 0:00:09]} 29. Rd1 {[%clk 0:01:39]}  Kh7 {[%clk 0:00:07]} 30. Rd8 {[%clk 0:01:39]}  g5 {[%clk 0:00:05]} 31. Rxf8 {[%clk 0:00:54]}  gxf4 {[%clk 0:00:06]} 32. h3 {[%clk 0:00:50]}  a5 {[%clk 0:00:06]} 33. Ra8 {[%clk 0:00:48]}  Ra2 {[%clk 0:00:05]} 34. Be7 {[%clk 0:00:47]}  Bc4 {[%clk 0:00:05]} 35. Bd6 {[%clk 0:00:45]}  Bf1 {[%clk 0:00:05]} 36. Bxf4 {[%clk 0:00:42]}  Bxg2+ {[%clk 0:00:06]} 37. Kh2 {[%clk 0:00:40]}  Bxf3+ {[%clk 0:00:06]} 38. Kg3 {[%clk 0:00:41]}  Bxe4 {[%clk 0:00:07]} 39. Be5 {[%clk 0:00:37]}  Bd5 {[%clk 0:00:08]} 40. h4 {[%clk 0:00:35]}  Kg6 {[%clk 0:00:08]} 41. Kf4 {[%clk 0:00:32]}  Ra4+ {[%clk 0:00:08]} 42. Kg3 {[%clk 0:00:33]}  Kf5 {[%clk 0:00:08]} 43. Bc7 {[%clk 0:00:31]}  h5 {[%clk 0:00:09]} 44. Rxa5 {[%clk 0:00:31]}  Rxa5 {[%clk 0:00:04]} 45. Bxa5 {[%clk 0:00:32]}  Ke4 {[%clk 0:00:04]} 46. Bb6 {[%clk 0:00:30]}  f5 {[%clk 0:00:05]} 47. Ba7 {[%clk 0:00:26]}  Bc4 {[%clk 0:00:06]} 48. Bb6 {[%clk 0:00:25]}  Be2 {[%clk 0:00:06]} 49. Kf2 {[%clk 0:00:24]}  Bg4 {[%clk 0:00:06]} 50. Ba7 {[%clk 0:00:22]}  f4 {[%clk 0:00:07]} 51. Bb6 {[%clk 0:00:19]}  Kd5 {[%clk 0:00:07]} 52. Bc7 {[%clk 0:00:18]}  Ke4 {[%clk 0:00:08]} 53. Bb6 {[%clk 0:00:18]}  Be6 {[%clk 0:00:06]} 54. Ba7 {[%clk 0:00:18]}  Bb3 {[%clk 0:00:06]} 55. Bb6 {[%clk 0:00:19]}  Bd1 {[%clk 0:00:07]} 56. Ba7 {[%clk 0:00:19]}  Kd5 {[%clk 0:00:05]} 57. Bb8 {[%clk 0:00:19]}  f3 {[%clk 0:00:05]} 58. Ba7 {[%clk 0:00:13]}  c5 {[%clk 0:00:05]} 59. Ke3 {[%clk 0:00:14]}  c4 {[%clk 0:00:04]} 60. Bb8 {[%clk 0:00:14]}  c3 {[%clk 0:00:03]} 61. Bg3 {[%clk 0:00:15]}  Kc4 {[%clk 0:00:03]} 62. Be5 {[%clk 0:00:12]}  Kb3 {[%clk 0:00:02]} 63. Bd4 {[%clk 0:00:10]}  Be2 {[%clk 0:00:02]} 64. Kf2 {[%clk 0:00:10]}  c2 {[%clk 0:00:01]} 65. Be3 {[%clk 0:00:08]}  Kb2 {[%clk 0:00:02]} 0-1


[Site "https://www.chess.com"]

[Event "Titled Tuesday Blitz August 15 Early 2023"]
[White "Iskusnyh, Sergei"]
[Black "Lehtosaari, Mauri"]
[WhiteFideId "4120027"]
[BlackFideId "501999"]
[WhiteElo "2641"]
[BlackElo "2515"]
[Result "0-1"]
[Round "8"]
[TimeControl "180+1"]
[Date "2023.08.15"]
[WhiteClock "0:00:00"]
[BlackClock "0:00:05"]
[Board "67"]

1. d4 {[%clk 0:03:00]}  d5 {[%clk 0:02:58]} 2. c4 {[%clk 0:03:00]}  c6 {[%clk 0:02:59]} 3. Nf3 {[%clk 0:02:59]}  Nf6 {[%clk 0:02:59]} 4. e3 {[%clk 0:02:58]}  Bg4 {[%clk 0:02:58]} 5. h3 {[%clk 0:02:54]}  Bh5 {[%clk 0:02:52]} 6. g4 {[%clk 0:02:53]}  Bg6 {[%clk 0:02:52]} 7. Ne5 {[%clk 0:02:53]}  e6 {[%clk 0:02:52]} 8. Nd2 {[%clk 0:02:50]}  Nfd7 {[%clk 0:02:18]} 9. Nxg6 {[%clk 0:02:45]}  hxg6 {[%clk 0:02:17]} 10. Bg2 {[%clk 0:02:44]}  Nf6 {[%clk 0:02:00]} 11. O-O {[%clk 0:02:42]}  Nbd7 {[%clk 0:01:59]} 12. Re1 {[%clk 0:02:34]}  Be7 {[%clk 0:01:56]} 13. e4 {[%clk 0:02:33]}  Nxe4 {[%clk 0:01:51]} 14. Nxe4 {[%clk 0:02:33]}  dxe4 {[%clk 0:01:51]} 15. Rxe4 {[%clk 0:02:33]}  Nf6 {[%clk 0:01:51]} 16. Re2 {[%clk 0:02:27]}  O-O {[%clk 0:01:48]} 17. Be3 {[%clk 0:02:22]}  Re8 {[%clk 0:01:47]} 18. Qb3 {[%clk 0:02:21]}  Rb8 {[%clk 0:01:39]} 19. Rd1 {[%clk 0:02:17]}  Qc7 {[%clk 0:01:26]} 20. Qc2 {[%clk 0:01:54]}  Red8 {[%clk 0:01:20]} 21. g5 {[%clk 0:01:31]}  Nh5 {[%clk 0:01:14]} 22. Qe4 {[%clk 0:01:30]}  Bd6 {[%clk 0:01:11]} 23. c5 {[%clk 0:00:53]}  Bf4 {[%clk 0:01:06]} 24. b4 {[%clk 0:00:29]}  a6 {[%clk 0:01:04]} 25. Red2 {[%clk 0:00:26]}  Rd5 {[%clk 0:00:47]} 26. Re1 {[%clk 0:00:19]}  Rxg5 {[%clk 0:00:40]} 27. Kf1 {[%clk 0:00:17]}  Rd5 {[%clk 0:00:38]} 28. Qf3 {[%clk 0:00:15]}  Bxe3 {[%clk 0:00:35]} 29. Rxe3 {[%clk 0:00:15]}  Rbd8 {[%clk 0:00:33]} 30. Qg4 {[%clk 0:00:14]}  R5d7 {[%clk 0:00:31]} 31. Be4 {[%clk 0:00:13]}  Rxd4 {[%clk 0:00:15]} 32. Rxd4 {[%clk 0:00:10]}  Rxd4 {[%clk 0:00:16]} 33. Rd3 {[%clk 0:00:10]}  Nf6 {[%clk 0:00:14]} 34. Rxd4 {[%clk 0:00:02]}  Nxg4 {[%clk 0:00:13]} 35. hxg4 {[%clk 0:00:03]}  Qe5 {[%clk 0:00:12]} 36. Rc4 {[%clk 0:00:03]}  Qa1+ {[%clk 0:00:12]} 37. Kg2 {[%clk 0:00:03]}  Qxa2 {[%clk 0:00:12]} 38. Rd4 {[%clk 0:00:03]}  Qb2 {[%clk 0:00:11]} 39. Rd8+ {[%clk 0:00:02]}  Kh7 {[%clk 0:00:11]} 40. Rd7 {[%clk 0:00:03]}  Qxb4 {[%clk 0:00:11]} 41. f3 {[%clk 0:00:03]}  Qxc5 {[%clk 0:00:10]} 42. Rxf7 {[%clk 0:00:03]}  Kh6 {[%clk 0:00:08]} 43. Rd7 {[%clk 0:00:02]}  b5 {[%clk 0:00:06]} 44. Rd8 {[%clk 0:00:02]}  Kg5 {[%clk 0:00:05]} 45. Kg3 {[%clk 0:00:02]}  Qe5+ {[%clk 0:00:05]} 46. Kh3 {[%clk 0:00:00]}  Kf4 {[%clk 0:00:05]} 0-1


[Site "https://www.chess.com"]

[Event "Titled Tuesday Blitz August 15 Early 2023"]
[White "Ovchinnikov, Vsevolod"]
[Black "FunnyDuck66"]
[WhiteFideId "24176842"]
[WhiteElo "2637"]
[BlackElo "2506"]
[Result "1-0"]
[Round "8"]
[TimeControl "180+1"]
[Date "2023.08.15"]
[WhiteClock "0:00:04"]
[BlackClock "0:00:00"]
[Board "68"]

1. d4 {[%clk 0:03:00]}  Nf6 {[%clk 0:02:57]} 2. c4 {[%clk 0:03:01]}  e6 {[%clk 0:02:55]} 3. g3 {[%clk 0:03:01]}  Bb4+ {[%clk 0:02:50]} 4. Bd2 {[%clk 0:03:01]}  Qe7 {[%clk 0:02:49]} 5. Bg2 {[%clk 0:03:01]}  Nc6 {[%clk 0:02:49]} 6. d5 {[%clk 0:03:01]}  exd5 {[%clk 0:02:46]} 7. cxd5 {[%clk 0:03:02]}  Ne5 {[%clk 0:02:43]} 8. Qb3 {[%clk 0:03:02]}  Bxd2+ {[%clk 0:02:39]} 9. Nxd2 {[%clk 0:03:03]}  d6 {[%clk 0:02:38]} 10. Ngf3 {[%clk 0:03:00]}  Nxf3+ {[%clk 0:02:32]} 11. Bxf3 {[%clk 0:03:01]}  O-O {[%clk 0:02:29]} 12. O-O {[%clk 0:03:01]}  Bf5 {[%clk 0:02:17]} 13. Rac1 {[%clk 0:02:56]}  Rab8 {[%clk 0:02:15]} 14. Rc4 {[%clk 0:02:50]}  Rfc8 {[%clk 0:02:12]} 15. Rfc1 {[%clk 0:02:49]}  c5 {[%clk 0:01:50]} 16. dxc6 {[%clk 0:02:30]}  bxc6 {[%clk 0:01:50]} 17. Qa3 {[%clk 0:02:30]}  c5 {[%clk 0:01:48]} 18. Kg2 {[%clk 0:02:03]}  Be6 {[%clk 0:01:44]} 19. Ra4 {[%clk 0:02:01]}  Rc7 {[%clk 0:01:43]} 20. b4 {[%clk 0:01:52]}  c4 {[%clk 0:01:37]} 21. Qe3 {[%clk 0:01:15]}  d5 {[%clk 0:01:35]} 22. a3 {[%clk 0:01:13]}  Qd7 {[%clk 0:01:30]} 23. Ra5 {[%clk 0:01:07]}  d4 {[%clk 0:01:30]} 24. Qe5 {[%clk 0:01:04]}  c3 {[%clk 0:01:28]} 25. Ne4 {[%clk 0:01:04]}  Nxe4 {[%clk 0:01:25]} 26. Qxe4 {[%clk 0:00:56]}  Rd8 {[%clk 0:01:22]} 27. h4 {[%clk 0:00:44]}  h6 {[%clk 0:01:15]} 28. Qe5 {[%clk 0:00:42]}  Qd6 {[%clk 0:01:03]} 29. Qxd6 {[%clk 0:00:35]}  Rxd6 {[%clk 0:01:04]} 30. Be4 {[%clk 0:00:34]}  g6 {[%clk 0:01:01]} 31. Bd3 {[%clk 0:00:21]}  f5 {[%clk 0:00:58]} 32. f4 {[%clk 0:00:18]}  Bd5+ {[%clk 0:00:57]} 33. Kf2 {[%clk 0:00:19]}  Re7 {[%clk 0:00:56]} 34. Rxd5 {[%clk 0:00:12]}  Rxd5 {[%clk 0:00:55]} 35. Bc4 {[%clk 0:00:13]}  Rd7 {[%clk 0:00:55]} 36. e3 {[%clk 0:00:11]}  Kf8 {[%clk 0:00:28]} 37. Bxd5 {[%clk 0:00:11]}  d3 {[%clk 0:00:16]} 38. Bb3 {[%clk 0:00:03]}  Rc7 {[%clk 0:00:10]} 39. Kf3 {[%clk 0:00:01]}  Ke7 {[%clk 0:00:05]} 40. e4 {[%clk 0:00:01]}  c2 {[%clk 0:00:05]} 41. Bxc2 {[%clk 0:00:01]}  d2 {[%clk 0:00:04]} 42. Rd1 {[%clk 0:00:01]}  Rxc2 {[%clk 0:00:05]} 43. exf5 {[%clk 0:00:02]}  gxf5 {[%clk 0:00:05]} 44. Ke2 {[%clk 0:00:02]}  Ra2 {[%clk 0:00:05]} 45. Rxd2 {[%clk 0:00:03]}  Rxa3 {[%clk 0:00:06]} 46. Rd3 {[%clk 0:00:04]}  Ra2+ {[%clk 0:00:07]} 47. Kf3 {[%clk 0:00:04]}  a5 {[%clk 0:00:06]} 48. bxa5 {[%clk 0:00:04]}  Rxa5 {[%clk 0:00:07]} 49. Re3+ {[%clk 0:00:04]}  Kf6 {[%clk 0:00:07]} 50. Rb3 {[%clk 0:00:04]}  Ra6 {[%clk 0:00:06]} 51. Kg2 {[%clk 0:00:04]}  h5 {[%clk 0:00:06]} 52. Kf3 {[%clk 0:00:05]}  Rc6 {[%clk 0:00:05]} 53. Ke3 {[%clk 0:00:05]}  Ra6 {[%clk 0:00:05]} 54. Kd4 {[%clk 0:00:05]}  Ke6 {[%clk 0:00:05]} 55. Kc5 {[%clk 0:00:06]}  Rd6 {[%clk 0:00:05]} 56. Re3+ {[%clk 0:00:04]}  Kd7 {[%clk 0:00:00]} 57. Ra3 {[%clk 0:00:04]} 1-0


[Site "https://www.chess.com"]

[Event "Titled Tuesday Blitz August 15 Early 2023"]
[White "Dias, Paulo"]
[Black "Gamayev, Oleg"]
[WhiteFideId "1900803"]
[BlackFideId "2802813"]
[WhiteElo "2482"]
[BlackElo "2616"]
[Result "1-0"]
[Round "8"]
[TimeControl "180+1"]
[Date "2023.08.15"]
[WhiteClock "0:01:36"]
[BlackClock "0:02:24"]
[Board "74"]

1. e4 {[%clk 0:03:00]}  d6 {[%clk 0:03:00]} 2. d4 {[%clk 0:02:59]}  Nf6 {[%clk 0:03:00]} 3. Nc3 {[%clk 0:02:58]}  e5 {[%clk 0:03:01]} 4. dxe5 {[%clk 0:02:56]}  dxe5 {[%clk 0:03:02]} 5. Qxd8+ {[%clk 0:02:56]}  Kxd8 {[%clk 0:03:03]} 6. Bc4 {[%clk 0:02:55]}  Be6 {[%clk 0:03:02]} 7. Bxe6 {[%clk 0:02:52]}  fxe6 {[%clk 0:03:03]} 8. Nge2 {[%clk 0:02:47]}  Bd6 {[%clk 0:03:02]} 9. f3 {[%clk 0:02:47]}  Nc6 {[%clk 0:03:03]} 10. Be3 {[%clk 0:02:46]}  a6 {[%clk 0:03:04]} 11. O-O-O {[%clk 0:02:46]}  Ke7 {[%clk 0:03:05]} 12. Nb1 {[%clk 0:02:46]}  h6 {[%clk 0:03:04]} 13. Nd2 {[%clk 0:02:46]}  b6 {[%clk 0:03:00]} 14. Nc4 {[%clk 0:02:45]}  b5 {[%clk 0:02:59]} 15. Nd2 {[%clk 0:02:41]}  Nd7 {[%clk 0:02:58]} 16. Nb3 {[%clk 0:02:41]}  a5 {[%clk 0:02:58]} 17. Nc3 {[%clk 0:02:39]}  Rhb8 {[%clk 0:02:56]} 18. Kb1 {[%clk 0:02:35]}  a4 {[%clk 0:02:56]} 19. Nd2 {[%clk 0:02:33]}  b4 {[%clk 0:02:51]} 20. Ne2 {[%clk 0:02:33]}  Na5 {[%clk 0:02:51]} 21. f4 {[%clk 0:02:20]}  b3 {[%clk 0:02:45]} 22. cxb3 {[%clk 0:02:17]}  axb3 {[%clk 0:02:45]} 23. a3 {[%clk 0:02:16]}  Nb6 {[%clk 0:02:39]} 24. fxe5 {[%clk 0:02:14]}  Bxa3 {[%clk 0:02:33]} 25. bxa3 {[%clk 0:02:07]}  Nbc4 {[%clk 0:02:31]} 26. Nxc4 {[%clk 0:02:05]}  Nxc4 {[%clk 0:02:32]} 27. Bc5+ {[%clk 0:02:05]}  Ke8 {[%clk 0:02:32]} 28. Rhf1 {[%clk 0:01:56]}  Nxa3+ {[%clk 0:02:32]} 29. Kb2 {[%clk 0:01:55]}  Nc4+ {[%clk 0:02:31]} 30. Kc3 {[%clk 0:01:54]}  Nd6 {[%clk 0:02:27]} 31. exd6 {[%clk 0:01:53]}  cxd6 {[%clk 0:02:28]} 32. Bxd6 {[%clk 0:01:49]}  Rc8+ {[%clk 0:02:28]} 33. Kxb3 {[%clk 0:01:43]}  Kd7 {[%clk 0:02:27]} 34. Rf7+ {[%clk 0:01:39]}  Kc6 {[%clk 0:02:24]} 35. Bb4 {[%clk 0:01:36]} 1-0


[Site "https://www.chess.com"]

[Event "Titled Tuesday Blitz August 15 Early 2023"]
[White "Itkis, Boris"]
[Black "Budrewicz, Krzysztof"]
[WhiteFideId "1209167"]
[BlackFideId "1127950"]
[WhiteElo "2470"]
[BlackElo "2594"]
[Result "1-0"]
[Round "8"]
[TimeControl "180+1"]
[Date "2023.08.15"]
[WhiteClock "0:00:25"]
[BlackClock "0:00:20"]
[Board "78"]

1. c4 {[%clk 0:03:00]}  e5 {[%clk 0:02:59]} 2. Nf3 {[%clk 0:03:01]}  Nc6 {[%clk 0:02:59]} 3. Nc3 {[%clk 0:03:01]}  Bb4 {[%clk 0:02:59]} 4. Nd5 {[%clk 0:02:58]}  Be7 {[%clk 0:02:59]} 5. d4 {[%clk 0:02:57]}  exd4 {[%clk 0:02:57]} 6. Nxd4 {[%clk 0:02:57]}  Nf6 {[%clk 0:02:57]} 7. Nxe7 {[%clk 0:02:48]}  Qxe7 {[%clk 0:02:57]} 8. Nxc6 {[%clk 0:02:48]}  dxc6 {[%clk 0:02:51]} 9. e3 {[%clk 0:02:48]}  O-O {[%clk 0:02:51]} 10. Be2 {[%clk 0:02:49]}  Bf5 {[%clk 0:02:51]} 11. O-O {[%clk 0:02:47]}  Rad8 {[%clk 0:02:51]} 12. Qb3 {[%clk 0:02:47]}  b6 {[%clk 0:02:49]} 13. Rd1 {[%clk 0:02:44]}  Ne4 {[%clk 0:02:47]} 14. f3 {[%clk 0:02:38]}  Nc5 {[%clk 0:02:47]} 15. Qc3 {[%clk 0:02:38]}  Rxd1+ {[%clk 0:02:43]} 16. Bxd1 {[%clk 0:02:38]}  Rd8 {[%clk 0:02:42]} 17. Be2 {[%clk 0:02:39]}  a5 {[%clk 0:02:36]} 18. e4 {[%clk 0:02:39]}  Be6 {[%clk 0:02:35]} 19. Be3 {[%clk 0:02:38]}  h5 {[%clk 0:02:28]} 20. Rd1 {[%clk 0:02:35]}  Rxd1+ {[%clk 0:02:25]} 21. Bxd1 {[%clk 0:02:36]}  h4 {[%clk 0:02:26]} 22. a3 {[%clk 0:02:34]}  h3 {[%clk 0:02:26]} 23. g3 {[%clk 0:02:34]}  f6 {[%clk 0:02:15]} 24. Kf2 {[%clk 0:02:33]}  Nd7 {[%clk 0:02:14]} 25. Be2 {[%clk 0:02:32]}  Ne5 {[%clk 0:02:13]} 26. c5 {[%clk 0:02:26]}  bxc5 {[%clk 0:01:57]} 27. Qxc5 {[%clk 0:02:15]}  Qd7 {[%clk 0:01:55]} 28. Qxa5 {[%clk 0:02:12]}  Nd3+ {[%clk 0:01:37]} 29. Bxd3 {[%clk 0:02:12]}  Qxd3 {[%clk 0:01:37]} 30. Qd2 {[%clk 0:02:13]}  Qc4 {[%clk 0:01:30]} 31. Bf4 {[%clk 0:02:08]}  Qa2 {[%clk 0:01:27]} 32. g4 {[%clk 0:02:06]}  Qb1 {[%clk 0:01:22]} 33. Kg3 {[%clk 0:02:05]}  g5 {[%clk 0:01:17]} 34. Be3 {[%clk 0:01:49]}  Qf1 {[%clk 0:01:13]} 35. Qf2 {[%clk 0:01:47]}  Qd3 {[%clk 0:01:07]} 36. Kxh3 {[%clk 0:01:46]}  Kf7 {[%clk 0:01:06]} 37. Kg3 {[%clk 0:01:46]}  Kg6 {[%clk 0:01:06]} 38. Qd2 {[%clk 0:01:45]}  Qf1 {[%clk 0:01:06]} 39. Bf2 {[%clk 0:01:40]}  Bc4 {[%clk 0:00:57]} 40. Qe1 {[%clk 0:01:26]}  Qd3 {[%clk 0:00:57]} 41. Qe3 {[%clk 0:01:26]}  Qc2 {[%clk 0:00:54]} 42. Qc3 {[%clk 0:01:27]}  Qe2 {[%clk 0:00:54]} 43. a4 {[%clk 0:01:23]}  Bd3 {[%clk 0:00:44]} 44. a5 {[%clk 0:01:22]}  Bb5 {[%clk 0:00:44]} 45. b4 {[%clk 0:01:19]}  Qf1 {[%clk 0:00:40]} 46. Qd4 {[%clk 0:01:09]}  Qe2 {[%clk 0:00:37]} 47. Qd8 {[%clk 0:01:05]}  Kf7 {[%clk 0:00:37]} 48. Qxc7+ {[%clk 0:01:04]}  Ke6 {[%clk 0:00:37]} 49. Qc8+ {[%clk 0:01:03]}  Kf7 {[%clk 0:00:37]} 50. Qd7+ {[%clk 0:01:00]}  Kg6 {[%clk 0:00:38]} 51. Qf5+ {[%clk 0:01:00]}  Kf7 {[%clk 0:00:37]} 52. Qc5 {[%clk 0:00:59]}  Qd3 {[%clk 0:00:34]} 53. Qd4 {[%clk 0:00:56]}  Qe2 {[%clk 0:00:31]} 54. Qe3 {[%clk 0:00:55]}  Qc4 {[%clk 0:00:31]} 55. Qc5 {[%clk 0:00:55]}  Qe2 {[%clk 0:00:31]} 56. a6 {[%clk 0:00:55]}  Bxa6 {[%clk 0:00:31]} 57. Qxc6 {[%clk 0:00:56]}  Bb5 {[%clk 0:00:31]} 58. Qd5+ {[%clk 0:00:55]}  Kg6 {[%clk 0:00:31]} 59. Qg8+ {[%clk 0:00:47]}  Kh6 {[%clk 0:00:31]} 60. Qh8+ {[%clk 0:00:44]}  Kg6 {[%clk 0:00:32]} 61. h4 {[%clk 0:00:39]}  gxh4+ {[%clk 0:00:31]} 62. Qxh4 {[%clk 0:00:39]}  Qd3 {[%clk 0:00:29]} 63. Qh5+ {[%clk 0:00:40]}  Kg7 {[%clk 0:00:30]} 64. Qd5 {[%clk 0:00:36]}  Qf1 {[%clk 0:00:27]} 65. g5 {[%clk 0:00:35]}  fxg5 {[%clk 0:00:27]} 66. Bd4+ {[%clk 0:00:34]}  Kf8 {[%clk 0:00:21]} 67. Qf5+ {[%clk 0:00:32]}  Ke8 {[%clk 0:00:21]} 68. Qe6+ {[%clk 0:00:32]}  Kf8 {[%clk 0:00:20]} 69. Bc5+ {[%clk 0:00:28]}  Kg7 {[%clk 0:00:20]} 70. Qe5+ {[%clk 0:00:26]}  Kf7 {[%clk 0:00:20]} 71. Qf5+ {[%clk 0:00:26]}  Ke8 {[%clk 0:00:20]} 72. Qe6+ {[%clk 0:00:24]}  Kd8 {[%clk 0:00:20]} 73. Bb6# {[%clk 0:00:25]} 1-0


[Site "https://www.chess.com"]

[Event "Titled Tuesday Blitz August 15 Early 2023"]
[White "Bobkov, Vadim"]
[Black "Sadykov, Ramil"]
[WhiteFideId "34110876"]
[BlackFideId "24113590"]
[WhiteElo "2469"]
[BlackElo "2593"]
[Result "0-1"]
[Round "8"]
[TimeControl "180+1"]
[Date "2023.08.15"]
[WhiteClock "0:00:00"]
[BlackClock "0:00:02"]
[Board "79"]

1. d4 {[%clk 0:02:59]}  Nf6 {[%clk 0:02:58]} 2. c4 {[%clk 0:02:59]}  e6 {[%clk 0:02:59]} 3. Nc3 {[%clk 0:02:59]}  Bb4 {[%clk 0:02:59]} 4. f3 {[%clk 0:03:00]}  O-O {[%clk 0:02:38]} 5. a3 {[%clk 0:02:58]}  Bxc3+ {[%clk 0:02:39]} 6. bxc3 {[%clk 0:02:59]}  d6 {[%clk 0:02:37]} 7. e4 {[%clk 0:02:54]}  h6 {[%clk 0:02:33]} 8. Bd3 {[%clk 0:02:51]}  c5 {[%clk 0:02:29]} 9. f4 {[%clk 0:02:50]}  e5 {[%clk 0:02:24]} 10. Nf3 {[%clk 0:02:49]}  Bg4 {[%clk 0:02:17]} 11. O-O {[%clk 0:02:39]}  Nc6 {[%clk 0:02:15]} 12. d5 {[%clk 0:02:38]}  Na5 {[%clk 0:02:05]} 13. f5 {[%clk 0:02:23]}  Nh7 {[%clk 0:01:39]} 14. Rb1 {[%clk 0:02:10]}  Rb8 {[%clk 0:01:37]} 15. Qa4 {[%clk 0:01:52]}  Bxf3 {[%clk 0:01:27]} 16. Rxf3 {[%clk 0:01:53]}  b6 {[%clk 0:01:25]} 17. g4 {[%clk 0:01:46]}  f6 {[%clk 0:01:21]} 18. h4 {[%clk 0:01:45]}  Rf7 {[%clk 0:01:17]} 19. Be3 {[%clk 0:01:32]}  Rfb7 {[%clk 0:01:11]} 20. Rg3 {[%clk 0:01:27]}  Qe8 {[%clk 0:01:08]} 21. Qc2 {[%clk 0:01:06]}  b5 {[%clk 0:01:05]} 22. cxb5 {[%clk 0:00:52]}  c4 {[%clk 0:01:06]} 23. Be2 {[%clk 0:00:51]}  Rxb5 {[%clk 0:01:05]} 24. Rxb5 {[%clk 0:00:50]}  Qxb5 {[%clk 0:01:06]} 25. Bxa7 {[%clk 0:00:39]}  Qb3 {[%clk 0:00:45]} 26. Bd1 {[%clk 0:00:24]}  Rb7 {[%clk 0:00:38]} 27. Bf2 {[%clk 0:00:15]}  Qxa3 {[%clk 0:00:37]} 28. Qa4 {[%clk 0:00:14]}  Qc1 {[%clk 0:00:29]} 29. Re3 {[%clk 0:00:04]}  Rb2 {[%clk 0:00:15]} 30. Re1 {[%clk 0:00:03]}  Qxc3 {[%clk 0:00:07]} 31. Re2 {[%clk 0:00:02]}  Rxe2 {[%clk 0:00:03]} 32. Bxe2 {[%clk 0:00:03]}  Nf8 {[%clk 0:00:03]} 33. Kf1 {[%clk 0:00:02]}  Nb3 {[%clk 0:00:02]} 34. Be1 {[%clk 0:00:02]}  Qe3 {[%clk 0:00:01]} 35. Qxc4 {[%clk 0:00:02]}  Nd2+ {[%clk 0:00:01]} 36. Bxd2 {[%clk 0:00:02]}  Qxd2 {[%clk 0:00:02]} 37. Qd3 {[%clk 0:00:01]}  Qf4+ {[%clk 0:00:02]} 38. Kg2 {[%clk 0:00:01]}  h5 {[%clk 0:00:01]} 39. gxh5 {[%clk 0:00:01]}  Nd7 {[%clk 0:00:02]} 40. Qg3 {[%clk 0:00:00]}  Qd2 {[%clk 0:00:02]} 0-1


[Site "https://www.chess.com"]

[Event "Titled Tuesday Blitz August 15 Early 2023"]
[White "Ovezdurdyyeva, Jemal"]
[Black "Aggelis, Nikolaos"]
[WhiteFideId "14001888"]
[BlackFideId "4213220"]
[WhiteElo "2396"]
[BlackElo "2573"]
[Result "0-1"]
[Round "8"]
[TimeControl "180+1"]
[Date "2023.08.15"]
[WhiteClock "0:00:00"]
[BlackClock "0:01:01"]
[Board "82"]

1. e4 {[%clk 0:03:00]}  c6 {[%clk 0:02:58]} 2. d4 {[%clk 0:03:00]}  d5 {[%clk 0:02:57]} 3. Nc3 {[%clk 0:03:01]}  dxe4 {[%clk 0:02:56]} 4. Nxe4 {[%clk 0:03:01]}  Nf6 {[%clk 0:02:56]} 5. Ng3 {[%clk 0:03:02]}  h5 {[%clk 0:02:44]} 6. h4 {[%clk 0:02:58]}  Bg4 {[%clk 0:02:41]} 7. Be2 {[%clk 0:02:58]}  e6 {[%clk 0:02:40]} 8. Bf4 {[%clk 0:02:54]}  Bd6 {[%clk 0:02:39]} 9. Bxd6 {[%clk 0:02:54]}  Qxd6 {[%clk 0:02:40]} 10. Nf3 {[%clk 0:02:52]}  Qb4+ {[%clk 0:02:35]} 11. Qd2 {[%clk 0:02:50]}  Qxb2 {[%clk 0:02:36]} 12. O-O {[%clk 0:02:50]}  Qb6 {[%clk 0:02:34]} 13. Rab1 {[%clk 0:02:39]}  Qc7 {[%clk 0:02:34]} 14. Ne5 {[%clk 0:02:40]}  Nbd7 {[%clk 0:02:24]} 15. Nxg4 {[%clk 0:02:13]}  hxg4 {[%clk 0:02:19]} 16. Qg5 {[%clk 0:02:14]}  O-O-O {[%clk 0:02:18]} 17. Rb4 {[%clk 0:02:02]}  Nd5 {[%clk 0:02:12]} 18. Rb3 {[%clk 0:01:53]}  Qf4 {[%clk 0:02:12]} 19. Bxg4 {[%clk 0:01:36]}  Qxg5 {[%clk 0:01:57]} 20. hxg5 {[%clk 0:01:36]}  Rh4 {[%clk 0:01:57]} 21. Bh3 {[%clk 0:01:34]}  Nf4 {[%clk 0:01:54]} 22. Rf3 {[%clk 0:01:18]}  Rdh8 {[%clk 0:01:48]} 23. c3 {[%clk 0:01:02]}  Kd8 {[%clk 0:01:46]} 24. Re1 {[%clk 0:01:00]}  Ke7 {[%clk 0:01:45]} 25. Re4 {[%clk 0:00:50]}  Nxh3+ {[%clk 0:01:44]} 26. gxh3 {[%clk 0:00:51]}  Rxe4 {[%clk 0:01:43]} 27. Nxe4 {[%clk 0:00:50]}  Rh4 {[%clk 0:01:36]} 28. Nd2 {[%clk 0:00:46]}  Rh5 {[%clk 0:01:32]} 29. Rg3 {[%clk 0:00:44]}  Nb6 {[%clk 0:01:29]} 30. Kg2 {[%clk 0:00:43]}  Nd5 {[%clk 0:01:29]} 31. Kf1 {[%clk 0:00:16]}  Nf4 {[%clk 0:01:27]} 32. Ne4 {[%clk 0:00:15]}  Rxh3 {[%clk 0:01:25]} 33. Nc5 {[%clk 0:00:15]}  Rxg3 {[%clk 0:01:21]} 34. fxg3 {[%clk 0:00:15]}  Nd5 {[%clk 0:01:21]} 35. Ne4 {[%clk 0:00:10]}  b5 {[%clk 0:01:19]} 36. Ke2 {[%clk 0:00:10]}  a5 {[%clk 0:01:18]} 37. Kd3 {[%clk 0:00:10]}  Nb6 {[%clk 0:01:18]} 38. Nc5 {[%clk 0:00:08]}  a4 {[%clk 0:01:16]} 39. Na6 {[%clk 0:00:08]}  Kd6 {[%clk 0:01:15]} 40. Nb4 {[%clk 0:00:07]}  Nd5 {[%clk 0:01:14]} 41. Nc2 {[%clk 0:00:07]}  f5 {[%clk 0:01:12]} 42. gxf6 {[%clk 0:00:06]}  gxf6 {[%clk 0:01:11]} 43. Ne1 {[%clk 0:00:06]}  f5 {[%clk 0:01:05]} 44. Nf3 {[%clk 0:00:05]}  Nf6 {[%clk 0:01:05]} 45. Ng5 {[%clk 0:00:05]}  Kd5 {[%clk 0:01:03]} 46. Nf7 {[%clk 0:00:00]}  Ne4 {[%clk 0:01:01]} 0-1


[Site "https://www.chess.com"]